bitfinex/quotes_SOLUSD_20240813
["timestamp","ask_amount","ask_price","bid_price","bid_amount"]
[1723572052671,38.19,148.31,148.2,0.12549]
[1723572052848,38.19,148.31,148.21,0.12549]
[1723572053046,6.99788137,148.34,148.18,20.0]
[1723572053047,38.19,148.27,148.18,20.0]
[1723572053252,38.19,148.25,148.17,20.0]
[1723572053550,38.19,148.27,148.18,0.12549]
[1723572053761,20.0,148.26,148.13,20.0]
[1723572053973,20.0,148.26,148.14,0.12549]
[1723572054277,45.0,148.25,148.14,0.12549]
[1723572054459,38.19,148.27,148.15,0.12549]
[1723572054658,38.19,148.27,148.15,65.25098]
[1723572054857,65.0,148.26,148.17,0.12549]
[1723572055070,38.19,148.29,148.17,0.25098]
[1723572055372,38.19,148.31,148.19,0.12549]
[1723572055578,38.19,148.31,148.19,0.25098]
[1723572055758,38.19,148.31,148.2,0.25098]
[1723572056074,38.19,148.29,148.21,0.25098]
[1723572056286,38.19,148.31,148.21,0.12549]
[1723572056566,6.7417,148.33,148.21,0.12549]
[1723572056567,38.19,148.33,148.21,0.25098]
[1723572056740,38.19,148.33,148.22,0.25098]
[1723572056965,38.19,148.33,148.22,0.12549]
[1723572057283,38.19,148.33,148.16,20.0]
[1723572057284,38.19,148.27,148.11,20.0]
[1723572057484,38.19,148.33,148.11,78.19]
[1723572057485,38.19,148.25,148.11,78.19]
[1723572057696,38.19,148.25,148.11,38.19]
[1723572057893,38.19,148.21,148.1,0.8335754]
[1723572058192,38.19,148.19,148.1,0.8335754]
[1723572058564,45.0,148.2,148.1,0.8335754]
[1723572059394,38.19,148.19,148.1,0.8335754]
[1723572059566,45.0,148.18,148.1,0.8335754]
[1723572060485,38.19,148.23,148.1,0.8335754]
[1723572060663,38.19,148.21,148.1,20.8335754]
[1723572060868,38.19,148.19,148.1,20.8335754]
[1723572061063,38.19,148.17,148.1,0.8335754]
[1723572061285,45.0,148.16,148.1,0.8335754]
[1723572061673,38.19,148.19,148.1,0.8335754]
[1723572061994,38.19,148.21,148.1,0.8335754]
[1723572062204,65.0,148.2,148.1,0.8335754]
[1723572062377,38.19,148.19,148.1,0.8335754]
[1723572062782,38.19,148.19,148.11,0.37647]
[1723572063113,38.19,148.19,148.11,0.25098]
[1723572063269,65.0,148.2,148.12,0.12549]
[1723572063471,65.0,148.2,148.11,0.25098]
[1723572063676,20.0,148.2,148.12,0.25098]
[1723572063968,38.19,148.23,148.14,0.12549]
[1723572064197,38.19,148.26,148.14,0.25098]
[1723572064410,38.19,148.26,148.15,0.12549]
[1723572064582,38.19,148.26,148.16,0.12549]
[1723572064787,38.19,148.28,148.16,20.12549]
[1723572065091,38.19,148.28,148.18,0.12549]
[1723572065289,38.19,148.28,148.18,0.25098]
[1723572065589,38.19,148.28,148.19,0.25098]
[1723572065793,38.19,148.3,148.2,0.12549]
[1723572065998,38.19,148.3,148.2,0.25098]
[1723572066208,38.19,148.3,148.21,0.25098]
[1723572066514,45.22301179,148.33,148.22,0.12549]
[1723572066515,38.19,148.33,148.22,0.12549]
[1723572066825,38.19,148.33,148.22,0.50196]
[1723572067823,45.0,148.32,148.22,0.50196]
[1723572068686,38.19,148.3,148.18,20.0]
[1723572068901,45.0,148.29,148.19,0.50196]
[1723572069281,45.0,148.29,148.19,45.50196]
[1723572069482,38.19,148.28,148.2,20.0]
[1723572069682,38.19,148.28,148.18,20.0]
[1723572070191,38.19,148.28,148.16,20.0]
[1723572070505,38.19,148.3,148.17,20.0]
[1723572070710,38.19,148.27,148.18,0.25098]
[1723572071014,45.0,148.26,148.16,21.6118]
[1723572071187,38.19,148.25,148.16,21.6118]
[1723572071510,45.0,148.26,148.16,21.6118]
[1723572071825,75.62,148.26,148.16,21.6118]
[1723572072213,30.62,148.28,148.16,41.6118]
[1723572072409,20.0,148.27,148.16,21.6118]
[1723572072592,20.0,148.27,148.17,45.50196]
[1723572072913,30.62,148.28,148.17,45.50196]
[1723572074395,30.62,148.3,148.19,0.12549]
[1723572074595,16.6284,148.31,148.19,45.50196]
[1723572074925,20.0,148.3,148.19,45.50196]
[1723572075131,30.62,148.29,148.19,0.50196]
[1723572075707,45.0,148.28,148.19,0.50196]
[1723572077093,30.62,148.27,148.19,0.50196]
[1723572077320,30.62,148.25,148.16,21.6118]
[1723572077836,20.0,148.24,148.16,21.6118]
[1723572078001,51.7436,148.29,148.16,21.6118]
[1723572078002,30.62,148.27,148.16,21.6118]
[1723572078329,65.0,148.26,148.16,21.6118]
[1723572078530,65.0,148.26,148.17,0.12549]
[1723572078828,65.0,148.26,148.17,0.25098]
[1723572079326,30.62,148.25,148.17,0.25098]
[1723572080998,30.62,148.25,148.16,21.6118]
[1723572081214,30.62,148.21,148.16,21.6118]
[1723572081422,30.62,148.21,148.12,22.4084]
[1723572082533,30.62,148.23,148.13,0.37647]
[1723572082733,20.0,148.22,148.13,0.37647]
[1723572083261,20.0,148.22,148.14,0.25098]
[1723572084151,30.62,148.21,148.13,0.25098]
[1723572085043,45.0,148.2,148.12,22.4084]
[1723572085255,30.62,148.21,148.12,22.4084]
[1723572085638,45.0,148.2,148.12,22.4084]
[1723572085833,30.62,148.21,148.12,22.4084]
[1723572086158,20.0,148.22,148.13,0.12549]
[1723572086348,20.0,148.22,148.13,0.25098]
[1723572086523,20.0,148.22,148.13,45.25098]
[1723572086850,20.0,148.22,148.14,0.25098]
[1723572087152,30.62,148.25,148.16,0.12549]
[1723572087367,46.522,148.29,148.2,0.12549]
[1723572087650,30.62,148.29,148.2,0.37647]
[1723572087948,30.62,148.27,148.19,6.5678]
[1723572088345,30.62,148.27,148.2,0.50196]
[1723572088545,30.62,148.27,148.2,0.37647]
[1723572088850,30.62,148.27,148.2,0.12549]
[1723572089063,30.62,148.29,148.2,0.25098]
[1723572089354,30.62,148.29,148.21,0.25098]
[1723572089727,30.62,148.29,148.21,0.12549]
[1723572089967,30.62,148.29,148.21,0.37647]
[1723572090137,30.62,148.31,148.21,0.37647]
[1723572090333,30.62,148.31,148.22,0.12549]
[1723572090647,30.62,148.31,148.22,0.37647]
[1723572091055,30.62,148.29,148.21,0.12549]
[1723572091351,30.62,148.25,148.19,6.5678]
[1723572091549,30.62,148.23,148.17,15.0169]
[1723572094061,30.62,148.25,148.17,15.0169]
[1723572094225,30.62,148.23,148.17,15.0169]
[1723572096540,30.62,148.27,148.18,0.12549]
[1723572096740,51.79155078,148.4,148.18,0.50196]
[1723572096741,30.62,148.29,148.18,0.50196]
[1723572097162,30.62,148.27,148.18,0.50196]
[1723572098063,30.62,148.25,148.17,15.0169]
[1723572098271,20.0,148.24,148.18,0.12549]
[1723572098582,30.62,148.25,148.18,0.50196]
[1723572099678,30.62,148.27,148.18,0.50196]
[1723572099985,20.0,148.26,148.18,0.50196]
[1723572100170,30.62,148.27,148.18,0.50196]
[1723572102696,30.62,148.25,148.18,0.50196]
[1723572105803,30.62,148.27,148.18,0.50196]
[1723572107677,30.62,148.29,148.18,0.50196]
[1723572107877,30.62,148.29,148.18,20.50196]
[1723572108110,30.62,148.29,148.2,0.12549]
[1723572108284,30.62,148.29,148.2,0.50196]
[1723572108699,30.62,148.29,148.2,0.37647]
[1723572109101,45.0,148.28,148.2,0.37647]
[1723572109277,30.62,148.25,148.16,0.12549]
[1723572109591,30.62,148.27,148.16,45.50196]
[1723572111384,30.62,148.27,148.18,0.12549]
[1723572111603,30.62,148.27,148.18,0.50196]
[1723572114113,30.62,148.29,148.18,20.50196]
[1723572114408,20.0,148.28,148.2,0.12549]
[1723572114579,20.0,148.28,148.2,0.50196]
[1723572115780,30.62,148.29,148.2,0.50196]
[1723572115986,30.62,148.29,148.2,20.50196]
[1723572116189,30.62,148.29,148.2,0.50196]
[1723572117717,30.62,148.29,148.16,20.0]
[1723572118018,30.62,148.27,148.17,50.0]
[1723572118320,30.62,148.27,148.18,20.0]
[1723572119019,30.62,148.27,148.19,0.12549]
[1723572119323,30.62,148.25,148.16,20.0]
[1723572119497,30.62,148.25,148.11,40.0]
[1723572119839,30.62,148.23,148.13,30.0]
[1723572120120,30.62,148.21,148.09,42.68594396]
[1723572120505,45.0,148.24,148.12,20.0]
[1723572120693,20.0,148.23,148.13,20.0]
[1723572121012,20.0,148.23,148.11,20.0]
[1723572121207,20.0,148.23,148.13,20.0]
[1723572121410,20.0,148.23,148.14,0.12549]
[1723572121614,30.62,148.22,148.12,20.0]
[1723572121793,45.0,148.21,148.1,0.8335754]
[1723572122123,30.62,148.2,148.1,0.8335754]
[1723572122500,30.62,148.2,148.1,20.8335754]
[1723572123019,30.62,148.22,148.12,20.0]
[1723572123214,30.62,148.22,148.13,0.50196]
[1723572123419,45.0,148.21,148.13,0.50196]
[1723572125425,30.62,148.2,148.1,0.8335754]
[1723572125730,30.62,148.14,148.1,0.8335754]
[1723572126104,30.62,148.16,148.1,0.8335754]
[1723572126626,45.0,148.15,148.1,0.8335754]
[1723572127500,50.62,148.19,148.1,0.8335754]
[1723572127703,45.0,148.18,148.1,0.8335754]
[1723572130612,30.62,148.15,148.1,0.8335754]
[1723572131010,30.62,148.11,148.1,0.8335754]
[1723572131514,30.62,148.13,148.1,0.8335754]
[1723572131714,45.0,148.12,148.1,0.8335754]
[1723572132121,46.7096,148.15,148.1,0.8335754]
[1723572132319,30.62,148.15,148.1,0.8335754]
[1723572132520,30.62,148.17,148.1,0.8335754]
[1723572132723,45.0,148.16,148.1,0.8335754]
[1723572133349,30.62,148.15,148.1,0.8335754]
[1723572134413,30.62,148.17,148.1,0.8335754]
[1723572135620,45.0,148.16,148.1,0.8335754]
[1723572137452,30.62,148.15,148.1,0.8335754]
[1723572139644,45.0,148.16,148.1,0.8335754]
[1723572139846,30.62,148.17,148.1,0.8335754]
[1723572140140,24.53,148.17,148.1,0.8335754]
[1723572140641,24.53,148.19,148.11,6.17799]
[1723572140844,24.53,148.19,148.12,0.12549]
[1723572141147,24.53,148.21,148.12,0.12549]
[1723572141367,24.53,148.21,148.13,0.12549]
[1723572141648,24.53,148.21,148.12,0.12549]
[1723572141847,21.8022,148.23,148.12,0.25098]
[1723572141848,24.53,148.19,148.12,0.25098]
[1723572142348,24.53,148.17,148.11,21.41818]
[1723572143444,24.53,148.17,148.11,21.1672]
[1723572143628,6.3052,148.24,148.12,0.37647]
[1723572143830,24.53,148.22,148.13,0.12549]
[1723572144341,24.53,148.18,148.11,6.0525]
[1723572145745,24.53,148.2,148.12,0.25098]
[1723572145948,20.0,148.19,148.12,0.25098]
[1723572147733,24.53,148.18,148.11,6.30348]
[1723572149854,24.53,148.2,148.12,0.12549]
[1723572150023,24.53,148.2,148.12,0.50196]
[1723572151046,24.53,148.2,148.11,6.0525]
[1723572151260,24.53,148.18,148.11,6.0525]
[1723572154347,45.0,148.17,148.11,6.0525]
[1723572154633,24.53,148.16,148.1,0.8335754]
[1723572154840,24.53,148.14,148.1,0.8335754]
[1723572155361,52.001384,148.17,148.1,0.8335754]
[1723572155666,45.0,148.17,148.1,0.8335754]
[1723572155960,69.53,148.18,148.1,0.8335754]
[1723572156355,24.53,148.16,148.1,0.8335754]
[1723572156730,24.53,148.14,148.1,0.8335754]
[1723572158048,24.53,148.12,148.1,0.8335754]
[1723572158268,24.54,148.12,148.1,0.8335754]
[1723572158967,45.0,148.11,148.1,0.8335754]
[1723572159167,65.0,148.11,148.1,0.8335754]
[1723572160556,24.54,148.14,148.1,0.8335754]
[1723572160758,20.0,148.13,148.1,0.8335754]
[1723572161468,24.54,148.16,148.1,0.8335754]
[1723572161765,8.80790011,148.17,148.1,0.8335754]
[1723572162947,24.54,148.14,148.1,0.8335754]
[1723572163268,24.54,148.12,148.1,0.8335754]
[1723572163869,45.0,148.11,148.1,0.8335754]
[1723572164368,65.0,148.11,148.1,0.8335754]
[1723572164556,20.0,148.11,148.1,0.8335754]
[1723572164951,24.54,148.12,148.1,0.8335754]
[1723572165165,20.0,148.11,148.1,0.8335754]
[1723572165369,24.54,148.12,148.1,0.8335754]
[1723572166749,3.03422911,148.13,148.1,0.8335754]
[1723572166949,20.0,148.13,148.1,0.8335754]
[1723572167174,24.54,148.12,148.1,0.8335754]
[1723572167394,69.54,148.12,148.1,0.8335754]
[1723572168381,24.54,148.12,148.1,0.8335754]
[1723572173573,20.0,148.13,148.1,0.8335754]
[1723572174779,11.44835803,148.17,148.1,0.8335754]
[1723572174999,24.54,148.2,148.11,0.25098]
[1723572175287,24.54,148.2,148.11,30.12549]
[1723572175453,24.54,148.18,148.11,30.12549]
[1723572175657,24.54,148.2,148.12,0.25098]
[1723572175966,24.54,148.22,148.13,0.25098]
[1723572176159,24.54,148.22,148.14,0.12549]
[1723572176471,24.54,148.22,148.13,0.25098]
[1723572177187,20.0,148.21,148.14,0.25098]
[1723572177363,24.54,148.25,148.16,0.12549]
[1723572177697,24.54,148.25,148.16,0.25098]
[1723572177859,24.54,148.25,148.17,0.25098]
[1723572178202,24.54,148.25,148.17,30.12549]
[1723572178783,20.0,148.24,148.18,0.12549]
[1723572178991,20.0,148.24,148.18,30.0]
[1723572181074,20.0,148.24,148.19,0.12549]
[1723572181291,20.0,148.24,148.19,0.37647]
[1723572181983,24.54,148.25,148.19,0.37647]
[1723572182184,24.54,148.27,148.19,0.37647]
[1723572183286,20.0,148.26,148.19,30.0]
[1723572183462,24.54,148.23,148.19,30.0]
[1723572184585,24.54,148.21,148.11,20.0]
[1723572184793,24.54,148.21,148.13,30.0]
[1723572185391,45.0,148.25,148.13,30.0]
[1723572185572,24.54,148.23,148.13,30.0]
[1723572185778,24.54,148.23,148.14,0.37647]
[1723572186183,24.54,148.25,148.15,0.25098]
[1723572186496,24.54,148.28,148.17,0.12549]
[1723572186674,24.54,148.28,148.17,45.25098]
[1723572186992,24.54,148.28,148.19,0.12549]
[1723572187184,24.54,148.28,148.19,0.25098]
[1723572187384,24.54,148.28,148.2,0.25098]
[1723572187697,24.54,148.24,148.18,30.0]
[1723572187884,24.54,148.22,148.18,30.0]
[1723572188089,24.54,148.2,148.1,0.8335754]
[1723572188408,24.54,148.2,148.12,30.0]
[1723572188561,24.54,148.22,148.12,30.0]
[1723572188761,24.54,148.24,148.14,20.0]
[1723572189297,24.54,148.24,148.15,75.50196]
[1723572189866,24.54,148.26,148.16,20.0]
[1723572190080,24.54,148.26,148.17,45.50196]
[1723572190497,24.54,148.26,148.17,0.50196]
[1723572190673,20.0,148.25,148.15,0.12549]
[1723572190993,24.54,148.18,148.1,0.8335754]
[1723572191161,24.54,148.18,148.11,30.0]
[1723572191365,24.54,148.16,148.1,0.8335754]
[1723572193178,24.54,148.14,148.1,0.8335754]
[1723572193511,20.0,148.15,148.1,0.8335754]
[1723572193812,24.54,148.16,148.1,0.8335754]
[1723572194018,30.66,148.17,148.1,0.8335754]
[1723572194312,65.0,148.16,148.1,0.8335754]
[1723572194802,20.0,148.16,148.1,0.8335754]
[1723572194978,30.66,148.17,148.1,0.8335754]
[1723572195184,65.0,148.16,148.1,0.8335754]
[1723572195689,30.66,148.15,148.1,0.8335754]
[1723572195876,30.66,148.13,148.1,0.8335754]
[1723572196077,30.66,148.11,148.1,0.8335754]
[1723572197202,30.66,148.15,148.1,0.8335754]
[1723572197374,20.0,148.14,148.1,0.8335754]
[1723572200088,30.66,148.11,148.1,0.8335754]
[1723572200295,95.66,148.11,148.1,0.8335754]
[1723572200625,95.66,148.11,148.01,6.135]
[1723572200781,30.66,148.08,148.01,6.135]
[1723572201494,75.66,148.1,148.01,6.135]
[1723572201703,20.0,148.09,148.01,6.135]
[1723572201914,30.66,148.07,148.01,6.135]
[1723572202091,30.66,148.07,148.0,15.7347]
[1723572202284,30.66,148.05,147.97,41.91]
[1723572202531,30.66,148.09,147.98,11.36399669]
[1723572202816,20.0,148.08,147.97,41.91]
[1723572203335,30.66,148.04,147.97,21.91]
[1723572203718,30.66,148.02,147.97,21.91]
[1723572204584,30.66,148.02,147.97,15.4422]
[1723572205495,30.66,148.02,147.95,0.8335754]
[1723572206001,30.66,148.0,147.95,0.8335754]
[1723572207935,30.66,148.04,147.95,0.8335754]
[1723572208241,20.0,148.03,147.96,0.37647]
[1723572209551,30.66,147.99,147.95,0.8335754]
[1723572210132,30.66,148.01,147.95,0.8335754]
[1723572210860,20.0,148.03,147.95,0.8335754]
[1723572210861,50.66,148.03,147.95,0.8335754]
[1723572211020,50.66,148.03,147.96,1.28907732]
[1723572211216,50.66,148.03,147.96,0.25098]
[1723572211414,50.66,148.03,147.96,0.12549]
[1723572211620,50.66,148.03,147.96,0.37647]
[1723572211825,50.66,148.03,147.95,0.8335754]
[1723572212853,30.66,148.01,147.95,0.8335754]
[1723572214248,22.9062,148.07,147.95,0.8335754]
[1723572214416,16.274,148.11,147.96,21.2217]
[1723572214629,30.66,148.09,148.01,0.06836326]
[1723572214831,30.66,148.11,148.03,15.1463]
[1723572215164,30.66,148.13,148.05,0.12549]
[1723572215323,30.66,148.15,148.05,1.35103435]
[1723572215523,30.66,148.15,148.07,0.12549]
[1723572215727,30.66,148.15,148.07,0.37647]
[1723572215921,30.66,148.15,148.07,0.12549]
[1723572216151,30.66,148.17,148.06,0.12549]
[1723572216451,30.66,148.17,148.08,0.12549]
[1723572216666,30.66,148.15,148.09,6.6059]
[1723572217176,30.66,148.17,148.1,0.25098]
[1723572217479,46.0333,148.19,148.1,0.37647]
[1723572217838,20.0,148.18,148.1,0.37647]
[1723572218349,20.0,148.28,148.1,0.37647]
[1723572218350,30.66,148.21,148.11,0.12549]
[1723572218981,30.66,148.15,148.09,6.6059]
[1723572219274,30.66,148.13,148.09,6.6059]
[1723572219471,30.66,148.13,148.04,6.6464]
[1723572219678,30.66,148.19,148.04,6.6464]
[1723572219679,30.66,148.11,148.04,6.6464]
[1723572220176,20.0,148.1,148.04,6.6464]
[1723572223281,30.66,148.13,148.05,0.25098]
[1723572223570,20.0,148.12,148.06,0.25098]
[1723572224253,20.0,148.14,148.06,0.25098]
[1723572226574,46.271,148.19,148.07,0.12549]
[1723572226575,30.66,148.17,148.07,0.12549]
[1723572226777,30.66,148.17,148.07,0.25098]
[1723572226955,30.66,148.17,148.08,0.25098]
[1723572227149,46.271,148.19,148.09,0.25098]
[1723572227354,46.271,148.19,148.1,0.37647]
[1723572227575,46.271,148.19,148.11,0.12549]
[1723572227880,46.271,148.19,148.1,0.12549]
[1723572227881,30.66,148.17,148.1,0.25098]
[1723572228050,30.66,148.17,148.1,0.12549]
[1723572228257,46.271,148.19,148.1,0.25098]
[1723572228455,46.271,148.19,148.11,0.25098]
[1723572228657,20.0,148.18,148.12,0.12549]
[1723572229259,20.0,148.18,148.11,0.37647]
[1723572229781,46.271,148.19,148.11,0.37647]
[1723572230655,30.66,148.17,148.09,30.0]
[1723572230860,30.66,148.17,148.1,0.12549]
[1723572231063,30.66,148.17,148.09,0.12549]
[1723572231268,30.66,148.17,148.09,0.25098]
[1723572231580,30.66,148.17,148.1,0.12549]
[1723572232964,30.66,148.19,148.1,0.25098]
[1723572233177,20.0,148.18,148.11,0.25098]
[1723572233676,20.0,148.18,148.11,1.60092409]
[1723572233886,20.0,148.18,148.11,0.25098]
[1723572234983,30.66,148.15,148.08,30.0]
[1723572235281,30.66,148.15,148.03,20.0]
[1723572235469,30.66,148.15,148.04,30.0]
[1723572235859,30.66,148.15,148.04,70.0]
[1723572236174,30.66,148.15,148.04,50.0]
[1723572236680,26.7486,148.18,148.04,30.0]
[1723572236681,30.66,148.13,148.04,30.0]
[1723572236890,30.66,148.09,148.04,30.0]
[1723572237189,30.66,148.07,148.01,0.06836326]
[1723572237380,30.66,148.05,148.01,0.06836326]
[1723572239379,30.66,148.09,148.01,0.06836326]
[1723572240774,30.66,148.09,148.01,0.44483326]
[1723572240964,30.66,148.11,148.02,0.12549]
[1723572241281,20.0,148.1,148.02,0.50196]
[1723572241685,30.66,148.13,148.04,0.12549]
[1723572241891,30.66,148.11,148.04,0.12549]
[1723572242297,30.66,148.15,148.04,41.47220124]
[1723572242466,30.66,148.15,148.06,0.12549]
[1723572242797,30.66,148.13,148.05,0.37647]
[1723572242983,30.66,148.11,148.05,0.37647]
[1723572243789,30.66,148.11,148.01,20.06836326]
[1723572243994,30.66,148.11,148.01,0.06836326]
[1723572244189,30.66,148.11,148.01,75.19385326]
[1723572244565,30.66,148.11,148.01,45.19385326]
[1723572245196,30.66,148.11,148.02,0.25098]
[1723572245390,30.66,148.11,148.03,0.12549]
[1723572245603,30.66,148.09,148.02,0.12549]
[1723572245976,30.66,148.07,148.01,0.06836326]
[1723572247474,30.66,148.09,148.01,0.06836326]
[1723572247776,30.66,148.11,148.01,0.31934326]
[1723572247979,30.66,148.13,148.02,0.25098]
[1723572248278,30.66,148.13,148.03,0.25098]
[1723572248497,30.66,148.13,148.05,0.12549]
[1723572249696,6.7475,148.21,148.05,0.25098]
[1723572249900,30.66,148.17,148.07,0.12549]
[1723572250081,30.66,148.15,148.07,0.25098]
[1723572250395,30.66,148.19,148.07,0.25098]
[1723572250396,30.66,148.13,148.08,0.12549]
[1723572250794,30.66,148.19,148.08,0.25098]
[1723572250795,30.66,148.16,148.08,0.25098]
[1723572250969,20.0,148.15,148.09,0.25098]
[1723572251178,20.0,148.15,148.1,0.12549]
[1723572251374,20.0,148.15,148.09,0.25098]
[1723572251590,30.66,148.18,148.09,0.12549]
[1723572251790,30.66,148.18,148.1,0.12549]
[1723572252108,30.66,148.18,148.11,0.12549]
[1723572252307,30.66,148.2,148.11,0.37647]
[1723572252603,30.66,148.2,148.11,21.26965488]
[1723572252786,30.66,148.2,148.12,0.12549]
[1723572252966,30.66,148.2,148.12,0.37647]
[1723572253170,30.66,148.2,148.12,0.93537418]
[1723572253373,30.66,148.2,148.13,1.47534089]
[1723572253573,30.66,148.2,148.14,16.63477]
[1723572253771,30.66,148.2,148.14,23.28467]
[1723572254777,30.66,148.2,148.14,22.9082]
[1723572254971,30.66,148.18,148.1,51.8329]
[1723572255206,30.66,148.16,148.1,21.8329]
[1723572255405,30.66,148.14,148.1,21.8329]
[1723572255584,30.66,148.14,148.04,21.7495]
[1723572255786,30.66,148.12,148.05,30.0]
[1723572256583,30.66,148.1,148.05,30.0]
[1723572256974,30.66,148.1,148.04,21.7495]
[1723572257393,30.66,148.12,148.04,21.7495]
[1723572258002,30.66,148.12,148.05,0.25098]
[1723572258182,30.66,148.12,148.06,0.25098]
[1723572259384,30.66,148.12,148.06,0.12549]
[1723572259789,30.66,148.1,148.04,21.7495]
[1723572261409,30.66,148.12,148.05,46.60144483]
[1723572261704,30.66,148.12,148.06,0.25098]
[1723572261909,30.66,148.12,148.07,0.25098]
[1723572262106,30.66,148.12,148.06,0.25098]
[1723572262318,30.66,148.12,148.06,0.12549]
[1723572262498,30.66,148.12,148.06,0.37647]
[1723572263095,30.66,148.12,148.04,21.7495]
[1723572263437,30.66,148.1,148.04,21.7495]
[1723572263621,30.66,148.1,148.05,0.12549]
[1723572266697,30.66,148.12,148.05,1.7270894]
[1723572267506,30.66,148.12,148.05,0.37647]
[1723572269409,30.66,148.12,148.05,0.25098]
[1723572269729,30.66,148.1,148.05,0.25098]
[1723572269911,30.66,148.08,148.04,21.7495]
[1723572270105,30.66,148.08,148.04,15.5634]
[1723572270309,30.66,148.08,148.01,0.06836326]
[1723572270611,30.66,148.08,148.01,30.06836326]
[1723572271623,30.66,148.08,148.02,0.37647]
[1723572272210,30.66,148.08,148.02,0.25098]
[1723572272408,30.66,148.08,148.02,0.12549]
[1723572273833,30.66,148.08,148.01,0.44483326]
[1723572274136,30.66,148.1,148.02,0.12549]
[1723572275201,30.66,148.12,148.02,20.12549]
[1723572275504,30.66,148.12,148.04,0.12549]
[1723572275505,20.0,148.11,148.04,0.12549]
[1723572276604,20.0,148.11,148.03,0.37647]
[1723572276814,30.66,148.09,148.03,0.37647]
[1723572277321,30.66,148.09,148.03,30.37647]
[1723572280832,50.66,148.11,148.04,45.12549]
[1723572281121,50.66,148.11,148.05,0.37647]
[1723572282827,30.66,148.11,148.06,16.51949]
[1723572283005,30.66,148.11,148.07,0.12549]
[1723572283529,30.66,148.13,148.07,0.37647]
[1723572283738,20.0,148.12,148.07,0.37647]
[1723572284826,20.0,148.12,148.07,0.25098]
[1723572285026,20.0,148.12,148.07,0.12549]
[1723572285830,30.66,148.15,148.08,0.12549]
[1723572286032,44.53,148.14,148.08,0.25098]
[1723572286630,44.53,148.14,148.09,0.12549]
[1723572286814,44.53,148.14,148.09,0.37647]
[1723572287016,24.53,148.15,148.09,0.37647]
[1723572287912,24.53,148.13,148.08,30.0]
[1723572288107,24.53,148.11,148.06,22.7079]
[1723572289613,24.53,148.11,148.07,0.25098]
[1723572289813,24.53,148.13,148.07,0.37647]
[1723572291041,24.53,148.13,148.08,0.12549]
[1723572291936,24.53,148.13,148.07,0.37647]
[1723572294227,24.53,148.13,148.08,0.12549]
[1723572295842,24.53,148.13,148.07,0.37647]
[1723572296348,24.53,148.09,148.04,30.0]
[1723572296545,24.53,148.12,147.99,20.0]
[1723572296546,24.53,148.07,147.99,20.0]
[1723572296728,24.53,148.09,147.99,20.0]